bitfinex-derivatives/quotes_BNBF0:USTF0_20241225
["timestamp","ask_amount","ask_price","bid_price","bid_amount"]
[1735095215360,0.26202749,702.71,701.01,0.28530263]
[1735095215563,0.26202749,702.7,701.01,0.28530263]
[1735095215765,0.28460837,702.72,701.01,0.28530263]
[1735095215766,0.26202749,702.69,701.01,0.28530263]
[1735095216066,0.2620214,702.68,701.01,0.28530263]
[1735095216266,0.2620214,702.67,701.01,0.28530263]
[1735095216464,0.2620214,702.66,701.01,0.28530263]
[1735095216664,0.2620214,702.65,701.01,0.28530263]
[1735095216866,0.2620214,702.64,701.01,0.28530263]
[1735095217065,0.2620214,702.63,701.01,0.28530263]
[1735095217263,0.2620214,702.62,701.01,0.28530263]
[1735095217468,0.2620214,702.61,701.01,0.28530263]
[1735095217668,0.2620214,702.6,701.01,0.28530263]
[1735095217868,1.0637064,702.63,701.01,0.28530263]
[1735095217869,0.2620214,702.59,701.01,0.28530263]
[1735095218069,0.2620214,702.62,701.01,0.28530263]
[1735095218270,0.26203012,702.61,701.01,0.28530263]
[1735095218570,0.26203012,702.6,701.01,0.28530263]
[1735095218768,0.26203012,702.59,701.01,0.28530263]
[1735095218969,0.26203012,702.58,701.01,0.28530263]
[1735095219170,0.26203012,702.57,701.01,0.28530263]
[1735095219468,0.26203012,702.56,701.01,0.28530263]
[1735095219768,0.26203012,702.55,701.01,0.28530263]
[1735095219972,0.26203012,702.54,701.01,0.28530263]
[1735095220166,0.26203012,702.53,701.01,0.28530263]
[1735095220365,0.26203012,702.52,701.01,0.28530263]
[1735095220566,0.26203012,702.51,701.01,0.28530263]
[1735095220768,1.0637064,702.62,701.01,0.28530263]
[1735095220969,0.26202158,702.61,701.01,0.28530263]
[1735095221764,1.0637064,702.64,701.01,0.28530263]
[1735095221765,0.26202158,702.6,701.01,0.28530263]
[1735095221969,0.26202158,702.59,701.01,0.28530263]
[1735095222168,0.26202158,702.58,701.01,0.28530263]
[1735095222372,0.26202158,702.57,701.01,0.28530263]
[1735095222572,0.26202158,702.56,701.01,0.28530263]
[1735095222871,0.26202158,702.55,701.01,0.28530263]
[1735095223072,0.26202158,702.54,701.01,0.28530263]
[1735095223271,0.26202158,702.53,701.01,0.28530263]
[1735095223474,0.26202158,702.63,701.01,0.28530263]
[1735095223669,0.26202158,702.62,701.01,0.28530263]
[1735095223874,0.26202158,702.61,701.01,0.28530263]
[1735095224067,1.0637064,702.64,701.01,0.28530263]
[1735095224068,0.26202158,702.6,701.01,0.28530263]
[1735095224270,0.26202158,702.59,701.01,0.28530263]
[1735095224473,0.26202158,702.58,701.01,0.28530263]
[1735095224673,0.26202158,702.57,701.01,0.28530263]
[1735095224871,0.26202158,702.56,701.01,0.28530263]
[1735095225074,0.28460837,702.72,701.01,0.28530263]
[1735095225075,1.0637064,702.49,701.01,0.28530263]
[1735095225271,0.26204613,702.48,701.01,0.28530263]
[1735095226176,1.0637064,702.46,701.01,0.28530263]
[1735095226371,0.26205313,702.45,701.01,0.28530263]
[1735095227375,0.26205313,702.44,701.01,0.28530263]
[1735095227576,0.26205313,702.43,701.01,0.28530263]
[1735095227877,0.26205313,702.42,701.01,0.28530263]
[1735095228077,0.26205313,702.41,701.01,0.28530263]
[1735095228275,1.0637064,702.58,701.01,0.28530263]
[1735095228276,0.26205313,702.4,701.01,0.28530263]
[1735095228472,0.26205313,702.39,701.01,0.28530263]
[1735095228673,0.26205313,702.38,701.01,0.28530263]
[1735095228871,0.26205313,702.37,701.01,0.28530263]
[1735095229076,0.26205313,702.57,701.01,0.28530263]
[1735095229276,0.26205313,702.56,701.01,0.28530263]
[1735095229476,0.26205313,702.55,701.01,0.28530263]
[1735095229778,0.26205313,702.54,701.01,0.28530263]
[1735095229976,1.0637064,702.52,701.01,0.28530263]
[1735095230171,0.26205313,702.51,701.01,0.28530263]
[1735095231178,0.26205313,702.5,701.01,0.28530263]
[1735095231378,0.26205313,702.49,701.01,0.28530263]
[1735095231585,0.26205313,702.48,701.01,0.28530263]
[1735095231880,0.26204825,702.47,701.01,0.28530263]
[1735095232080,0.26204825,702.46,701.01,0.28530263]
[1735095232280,0.26204825,702.45,701.01,0.28530263]
[1735095232479,0.26204825,702.44,701.01,0.28530263]
[1735095232680,0.26203512,702.43,701.01,0.28530263]
[1735095232876,0.26203512,702.42,701.01,0.28530263]
[1735095233082,0.26203512,702.41,701.01,0.28530263]
[1735095233275,0.26203512,702.4,701.01,0.28530263]
[1735095233475,0.26203512,702.39,701.01,0.28530263]
[1735095233681,0.26203512,702.38,701.01,0.28530263]
[1735095233877,0.26203512,702.37,701.01,0.28530263]
[1735095234080,0.26203512,702.36,701.01,0.28530263]
[1735095234380,0.26203512,702.35,701.01,0.28530263]
[1735095234680,0.26203512,702.34,701.01,0.28530263]
[1735095234881,0.26203512,702.33,701.01,0.28530263]
[1735095235077,0.26203512,702.32,701.01,0.28530263]
[1735095235282,0.26203512,702.31,701.01,0.28530263]
[1735095235583,0.26203512,702.3,701.01,0.28530263]
[1735095235782,0.26203512,702.29,701.01,0.28530263]
[1735095235981,0.26203512,702.28,701.01,0.28530263]
[1735095236180,0.26203512,702.27,701.01,0.28530263]
[1735095236379,0.26203512,702.26,701.01,0.28530263]
[1735095236576,0.26203512,702.25,701.01,0.28530263]
[1735095236882,0.26203512,702.24,701.01,0.28530263]
[1735095237083,0.26203512,702.23,701.01,0.28530263]
[1735095237383,1.0637064,702.54,701.01,0.28530263]
[1735095237384,0.26203512,702.22,701.01,0.28530263]
[1735095237579,0.26203512,702.21,701.01,0.28530263]
[1735095237883,0.26203512,702.2,701.01,0.28530263]
[1735095238082,0.26203512,702.19,701.01,0.28530263]
[1735095238384,0.28460837,702.72,701.01,0.28530263]
[1735095238385,0.26203512,702.18,701.01,0.28530263]
[1735095238683,0.26203512,702.17,701.01,0.28530263]
[1735095238983,0.26204049,702.16,701.01,0.28530263]
[1735095239186,0.26204049,702.15,701.01,0.28530263]
[1735095239380,0.26204049,702.14,701.01,0.28530263]
[1735095239685,1.0637064,702.5,701.01,0.28530263]
[1735095239880,1.0637064,702.45,701.01,0.28530263]
[1735095240179,0.54677282,702.44,701.01,0.28530263]
[1735095240380,0.262051,702.43,701.01,0.28530263]
[1735095240585,0.54677688,702.43,701.01,0.28530263]
[1735095240782,0.262051,702.42,701.01,0.28530263]
[1735095240980,0.26204669,702.41,701.01,0.28530263]
[1735095241181,0.26204669,702.4,701.01,0.28530263]
[1735095241382,0.26204669,702.39,701.01,0.28530263]
[1735095241583,0.26204669,702.38,701.01,0.28530263]
[1735095241783,0.26204669,702.37,701.01,0.28530263]
[1735095241986,0.26204669,702.36,701.01,0.28530263]
[1735095242187,0.26204711,702.35,701.01,0.28530263]
[1735095242387,0.26204711,702.34,701.01,0.28530263]
[1735095242586,0.26204711,702.33,701.01,0.28530263]
[1735095242790,0.26204711,702.32,701.01,0.28530263]
[1735095242990,0.26204711,702.31,701.01,0.28530263]
[1735095243187,0.26204711,702.3,701.01,0.28530263]
[1735095243385,0.26204711,702.29,701.01,0.28530263]
[1735095243587,0.26204711,702.28,701.01,0.28530263]
[1735095243788,0.26204711,702.27,701.01,0.28530263]
[1735095243985,0.26204711,702.26,701.01,0.28530263]
[1735095244190,0.26204711,702.25,701.01,0.28530263]
[1735095244386,0.26204711,702.24,701.01,0.28530263]
[1735095244593,0.26204711,702.23,701.01,0.28530263]
[1735095244891,0.26204711,702.22,701.01,0.28530263]
[1735095245091,0.28472588,702.43,701.01,0.28530263]
[1735095245293,0.26201848,702.42,701.01,0.28530263]
[1735095247693,0.26201564,702.41,701.01,0.28530263]
[1735095247894,0.26201564,702.42,701.01,0.28530263]
[1735095248090,0.26201564,702.41,701.01,0.28530263]
[1735095248296,0.26201564,702.4,701.01,0.28530263]
[1735095248496,0.26201564,702.39,701.01,0.28530263]
[1735095248695,0.28472588,702.43,701.01,0.28530263]
[1735095248696,0.26201564,702.38,701.01,0.28530263]
[1735095248895,0.26201564,702.37,701.01,0.28530263]
[1735095249090,0.28472588,702.43,701.01,0.28530263]
[1735095249091,0.26201564,702.36,701.01,0.28530263]
[1735095249291,0.26201564,702.35,701.01,0.28530263]
[1735095249494,0.26201564,702.34,701.01,0.28530263]
[1735095249694,0.26201564,702.33,701.01,0.28530263]
[1735095249893,0.26201564,702.32,701.01,0.28530263]
[1735095250096,0.26201564,702.31,701.01,0.28530263]
[1735095250298,0.26201564,702.3,701.01,0.28530263]
[1735095250494,0.26201564,702.29,701.01,0.28530263]
[1735095250695,1.0637064,702.42,701.01,0.28530263]
[1735095250996,0.2619683,702.41,701.01,0.28530263]
[1735095251196,0.2619683,702.4,701.01,0.28530263]
[1735095251396,0.2619683,702.39,701.01,0.28530263]
[1735095251597,0.28472588,702.43,701.01,0.28530263]
[1735095252804,0.26195725,702.42,701.01,0.28530263]
[1735095256207,0.26196208,702.41,701.01,0.28530263]
[1735095256407,0.26196208,702.4,701.01,0.28530263]
[1735095256608,0.28472588,702.43,701.01,0.28530263]
[1735095256801,0.26195643,702.42,701.01,0.28530263]
[1735095257002,0.26195563,702.41,701.01,0.28530263]
[1735095257205,0.28472588,702.43,701.01,0.28530263]
[1735095257401,0.26195717,702.42,701.01,0.28530263]
[1735095259103,0.2619659,702.41,701.01,0.28530263]
[1735095259304,0.2619659,702.4,701.01,0.28530263]
[1735095259611,0.2619659,702.39,701.01,0.28530263]
[1735095259909,0.2619659,702.38,701.01,0.28530263]
[1735095260209,0.28472588,702.43,701.01,0.28530263]
[1735095260411,0.26196923,702.42,701.01,0.28530263]
[1735095262712,0.28472588,702.43,701.01,0.28530263]
[1735095267908,0.26203523,702.42,701.01,0.28530263]
[1735095270116,0.26201471,702.41,701.01,0.28530263]
[1735095270316,0.26201471,702.4,701.01,0.28530263]
[1735095270514,0.28472588,702.43,701.01,0.28530263]
[1735095270515,0.26201471,702.39,701.01,0.28530263]
[1735095270819,0.26201471,702.38,701.01,0.28530263]
[1735095271019,0.26201471,702.37,701.01,0.28530263]
[1735095271218,0.26201471,702.36,701.01,0.28530263]
[1735095271413,0.26201471,702.35,701.01,0.28530263]
[1735095271614,0.26201471,702.34,701.01,0.28530263]
[1735095271919,0.28472588,702.43,701.01,0.28530263]
[1735095271920,0.26201471,702.33,701.01,0.28530263]
[1735095272118,0.26201471,702.32,701.01,0.28530263]
[1735095272318,0.26201471,702.31,701.01,0.28530263]
[1735095272518,0.26201471,702.3,701.01,0.28530263]
[1735095272720,0.26200123,702.29,701.01,0.28530263]
[1735095272913,0.26200123,702.28,701.01,0.28530263]
[1735095273118,0.26200123,702.27,701.01,0.28530263]
[1735095273320,0.26200123,702.26,701.01,0.28530263]
[1735095273519,0.28472588,702.43,701.01,0.28530263]
[1735095273716,0.26199723,702.42,701.01,0.28530263]
[1735095274514,0.28472588,702.43,701.01,0.28530263]
[1735095284524,0.26202885,702.42,701.01,0.28530263]
[1735095286628,0.2620255,702.41,701.01,0.28530263]
[1735095286828,0.2620255,702.4,701.01,0.28530263]
[1735095287024,0.2620255,702.39,701.01,0.28530263]
[1735095287230,0.2620255,702.38,701.01,0.28530263]
[1735095287423,0.2620255,702.37,701.01,0.28530263]
[1735095287625,0.28472588,702.43,701.01,0.28530263]
[1735095287626,0.2620255,702.36,701.01,0.28530263]
[1735095287826,0.2620255,702.35,701.01,0.28530263]
[1735095288035,0.2620255,702.34,701.01,0.28530263]
[1735095288326,0.2620255,702.33,701.01,0.28530263]
[1735095288531,0.2620255,702.32,701.01,0.28530263]
[1735095288731,0.2620255,702.31,701.01,0.28530263]
[1735095288932,0.2620255,702.3,701.01,0.28530263]
[1735095289126,0.2620255,702.29,701.01,0.28530263]
[1735095289431,0.2620255,702.28,701.01,0.28530263]
[1735095289631,0.2620255,702.27,701.01,0.28530263]
[1735095289829,0.2620255,702.26,701.01,0.28530263]
[1735095290027,0.28472588,702.43,701.01,0.28530263]
[1735095290332,0.26202677,702.42,701.01,0.28530263]
[1735095292226,0.26200899,702.41,701.01,0.28530263]
[1735095292431,0.26200899,702.4,701.01,0.28530263]
[1735095292628,0.26200899,702.39,701.01,0.28530263]
[1735095292826,0.26200899,702.38,701.01,0.28530263]
[1735095293025,0.26200899,702.37,701.01,0.28530263]
[1735095293225,0.26200899,702.36,701.01,0.28530263]
[1735095293426,0.26200899,702.35,701.01,0.28530263]
[1735095293629,0.26200899,702.34,701.01,0.28530263]
[1735095293830,0.26200899,702.33,701.01,0.28530263]
[1735095294130,0.26200899,702.32,701.01,0.28530263]
[1735095294431,0.26200899,702.31,701.01,0.28530263]
[1735095294637,0.26200899,702.3,701.01,0.28530263]
[1735095294831,0.28472588,702.43,701.01,0.28530263]
[1735095295033,0.26198685,702.42,701.01,0.28530263]
[1735095297730,0.28472588,702.43,701.01,0.28530263]
[1735095297731,0.26199275,702.41,701.01,0.28530263]
[1735095297933,0.26199275,702.4,701.01,0.28530263]
[1735095298126,0.26199275,702.39,701.01,0.28530263]
[1735095298329,0.26199275,702.38,701.01,0.28530263]
[1735095298528,0.26199504,702.37,701.01,0.28530263]
[1735095298836,0.26199504,702.36,701.01,0.28530263]
[1735095299133,0.26199504,702.35,701.01,0.28530263]
[1735095299337,0.26199504,702.34,701.01,0.28530263]
[1735095299630,0.26201674,702.33,701.01,0.28530263]
[1735095299834,0.28472588,702.43,701.01,0.28530263]
[1735095300032,0.2620197,702.42,701.01,0.28530263]
[1735095304937,0.28472588,702.43,701.01,0.28530263]
[1735095305138,0.26200921,702.42,701.01,0.28530263]
[1735095306540,0.28472588,702.43,701.01,0.28530263]
[1735095309541,0.26197021,702.42,701.01,0.28530263]
[1735095313443,0.26199445,702.41,701.01,0.28530263]
[1735095313746,0.26199445,702.4,701.01,0.28530263]
[1735095313945,0.26199445,702.39,701.01,0.28530263]
[1735095314149,0.28472588,702.43,701.01,0.28530263]
[1735095314348,0.26200838,702.42,701.01,0.28530263]
[1735095315648,0.28472588,702.43,701.01,0.28530263]
[1735095316247,0.26197099,702.42,701.01,0.28530263]
[1735095316548,0.28472588,702.43,701.01,0.28530263]
[1735095320852,0.26198018,702.42,701.01,0.28530263]
[1735095321551,0.26200239,702.41,701.01,0.28530263]
[1735095321849,0.26200239,702.4,701.01,0.28530263]
[1735095322050,0.26200239,702.39,701.01,0.28530263]
[1735095322245,0.26200239,702.38,701.01,0.28530263]
[1735095322445,0.28472588,702.43,701.01,0.28530263]
[1735095322647,0.26200233,702.42,701.01,0.28530263]
[1735095329356,0.28472588,702.43,701.01,0.28530263]
[1735095337451,0.26201997,702.42,701.01,0.28530263]
[1735095337659,0.5467499,702.42,701.01,0.28530263]
[1735095337860,0.28472993,702.42,701.01,0.28530263]
[1735095338060,0.26202433,702.41,701.01,0.28530263]
[1735095338359,0.28472993,702.42,701.01,0.28530263]
[1735095338561,0.26202508,702.41,701.01,0.28530263]
[1735095341163,0.26201802,702.4,701.01,0.28530263]
[1735095341363,0.26201802,702.39,701.01,0.28530263]
[1735095341558,0.26201802,702.38,701.01,0.28530263]
[1735095341758,0.26201802,702.37,701.01,0.28530263]
[1735095341958,0.26201802,702.36,701.01,0.28530263]
[1735095342160,0.26201802,702.35,701.01,0.28530263]
[1735095342461,0.26201802,702.34,701.01,0.28530263]
[1735095342662,0.26201802,702.33,701.01,0.28530263]
[1735095342858,0.26201802,702.32,701.01,0.28530263]
[1735095343064,0.26201802,702.31,701.01,0.28530263]
[1735095343263,0.26201802,702.3,701.01,0.28530263]
[1735095343458,0.26201802,702.29,701.01,0.28530263]
[1735095343656,0.26201802,702.28,701.01,0.28530263]
[1735095343862,0.26202888,702.27,701.01,0.28530263]
[1735095344061,0.28472993,702.42,701.01,0.28530263]
[1735095344062,0.26202888,702.26,701.01,0.28530263]
[1735095344257,0.26202888,702.25,701.01,0.28530263]
[1735095344461,0.26202888,702.24,701.01,0.28530263]
[1735095344665,0.26202888,702.23,701.01,0.28530263]
[1735095344862,0.26202888,702.22,701.01,0.28530263]
[1735095345065,0.26202888,702.21,701.01,0.28530263]
[1735095345367,0.26202888,702.2,701.01,0.28530263]
[1735095345566,0.26202888,702.19,701.01,0.28530263]
[1735095345769,0.26202888,702.18,701.01,0.28530263]
[1735095345969,0.26202888,702.17,701.01,0.28530263]
[1735095346169,0.26202888,702.16,701.01,0.28530263]
[1735095346370,0.26202888,702.15,701.01,0.28530263]
[1735095346563,0.26202888,702.14,701.01,0.28530263]
[1735095346768,0.26202888,702.13,701.01,0.28530263]
[1735095346964,0.26202888,702.12,701.01,0.28530263]
[1735095347168,0.26202888,702.11,701.01,0.28530263]
[1735095347368,0.26202804,702.1,701.01,0.28530263]
[1735095347568,1.35154867,702.42,701.01,0.28530263]
[1735095347772,0.2620258,702.41,701.01,0.28530263]
[1735095349269,0.26202376,702.4,701.01,0.28530263]
[1735095349466,0.26202376,702.39,701.01,0.28530263]
[1735095349665,0.26202376,702.38,701.01,0.28530263]
[1735095349872,0.26202376,702.37,701.01,0.28530263]
[1735095350171,0.26202376,702.36,701.01,0.28530263]
[1735095350472,0.26202376,702.35,701.01,0.28530263]
[1735095350671,0.26202376,702.34,701.01,0.28530263]
[1735095350872,0.26202376,702.33,701.01,0.28530263]
[1735095351172,0.26202376,702.32,701.01,0.28530263]
[1735095351366,0.26202376,702.41,701.01,0.28530263]
[1735095351571,0.26202376,702.4,701.01,0.28530263]
[1735095351767,0.26202376,702.39,701.01,0.28530263]
[1735095352066,0.26204027,702.38,701.01,0.28530263]
[1735095352267,0.26204027,702.37,701.01,0.28530263]
[1735095352470,0.28472993,702.42,701.01,0.28530263]
[1735095352471,0.26204027,702.36,701.01,0.28530263]
[1735095352771,0.26204027,702.35,701.01,0.28530263]
[1735095353072,0.26204027,702.34,701.01,0.28530263]
[1735095353371,0.28472993,702.42,701.01,0.28530263]
[1735095353572,0.26207946,702.41,701.01,0.28530263]
[1735095354572,0.28473804,702.4,701.01,0.28530263]
[1735095354772,0.26208235,702.39,701.01,0.28530263]
[1735095355469,0.28473804,702.4,701.01,0.28530263]
[1735095355773,0.26208228,702.39,701.01,0.28530263]
[1735095355972,0.28474614,702.38,701.01,0.28530263]
[1735095356173,0.26208228,702.37,701.01,0.28530263]
[1735095356367,0.28475425,702.36,701.01,0.28530263]
[1735095356570,0.26208228,702.35,701.01,0.28530263]
[1735095356967,0.28476236,702.34,701.01,0.28530263]
[1735095357174,0.26208228,702.33,701.01,0.28530263]
[1735095357573,0.54684753,702.32,701.01,0.28530263]
[1735095357773,0.26207706,702.31,701.01,0.28530263]
[1735095358775,0.28477858,702.3,701.01,0.28530263]
[1735095358975,0.26207706,702.29,701.01,0.28530263]
[1735095360277,0.26208368,702.28,701.01,0.28530263]
[1735095360575,0.26208368,702.27,701.01,0.28530263]
[1735095360776,0.26208368,702.26,701.01,0.28530263]
[1735095360975,0.26208368,702.25,701.01,0.28530263]
[1735095361176,0.26208368,702.24,701.01,0.28530263]
[1735095361478,0.26208368,702.23,701.01,0.28530263]
[1735095361677,0.26208368,702.22,701.01,0.28530263]
[1735095361872,0.28477858,702.3,701.01,0.28530263]
[1735095361873,0.26208368,702.21,701.01,0.28530263]
[1735095362071,0.26208368,702.2,701.01,0.28530263]
[1735095362272,0.26208368,702.29,701.01,0.28530263]
[1735095362475,0.26208368,702.28,701.01,0.28530263]
[1735095362672,0.26208368,702.27,701.01,0.28530263]
[1735095362876,0.26208368,702.26,701.01,0.28530263]
[1735095363076,0.26208368,702.25,701.01,0.28530263]
[1735095363276,0.26208368,702.24,701.01,0.28530263]
[1735095363476,0.26208368,702.23,701.01,0.28530263]
[1735095363677,0.26208368,702.22,701.01,0.28530263]
[1735095363880,0.28477858,702.3,701.01,0.28530263]
[1735095363881,0.26208368,702.21,701.01,0.28530263]
[1735095364081,0.26208368,702.2,701.01,0.28530263]
[1735095364385,0.26208368,702.19,701.01,0.28530263]
[1735095364681,0.26208368,702.18,701.01,0.28530263]
[1735095364881,0.26208368,702.17,701.01,0.28530263]
[1735095365082,0.28477858,702.3,701.01,0.28530263]
[1735095365282,0.26205971,702.29,701.01,0.28530263]
[1735095367780,0.28477858,702.3,701.01,0.28530263]
[1735095367986,0.26201419,702.29,701.01,0.28530263]
[1735095368487,0.26202154,702.28,701.01,0.28530263]
[1735095368685,0.26202154,702.27,701.01,0.28530263]
[1735095368881,0.26202154,702.29,701.01,0.28530263]
[1735095369083,0.26202154,702.28,701.01,0.28530263]
[1735095369287,0.26202154,702.27,701.01,0.28530263]
[1735095369587,0.26202154,702.26,701.01,0.28530263]
[1735095369887,0.26202154,702.25,701.01,0.28530263]
[1735095370079,0.26202154,702.24,701.01,0.28530263]
[1735095370281,0.26202154,702.23,701.01,0.28530263]
[1735095370487,0.26202154,702.22,701.01,0.28530263]
[1735095370687,0.26202154,702.21,701.01,0.28530263]
[1735095370887,0.26202154,702.2,701.01,0.28530263]
[1735095371088,0.26202154,702.19,701.01,0.28530263]
[1735095371281,0.28477858,702.3,701.01,0.28530263]
[1735095371282,0.26202154,702.29,701.01,0.28530263]
[1735095371586,0.2620516,702.28,701.01,0.28530263]
[1735095371786,0.2620516,702.27,701.01,0.28530263]
[1735095371982,0.28477858,702.3,701.01,0.28530263]
[1735095371983,0.2620516,702.26,701.01,0.28530263]
[1735095372187,0.2620516,702.25,701.01,0.28530263]
[1735095372388,0.2620516,702.24,701.01,0.28530263]
[1735095372582,0.2620516,702.23,701.01,0.28530263]
[1735095372785,0.2620516,702.22,701.01,0.28530263]
[1735095372985,0.2620516,702.21,701.01,0.28530263]
[1735095373188,0.2620516,702.2,701.01,0.28530263]
[1735095373389,0.26207238,702.19,701.01,0.28530263]
[1735095373688,0.26207238,702.18,701.01,0.28530263]
[1735095373883,0.26207238,702.17,701.01,0.28530263]
[1735095374082,0.26207238,702.16,701.01,0.28530263]
[1735095374282,0.26207238,702.15,701.01,0.28530263]
[1735095374485,0.26207238,702.14,701.01,0.28530263]
[1735095374683,0.26207238,702.13,701.01,0.28530263]
[1735095374883,0.26207238,702.12,701.01,0.28530263]
[1735095375189,0.28477858,702.3,701.01,0.28530263]
[1735095375390,0.26204368,702.29,701.01,0.28530263]
[1735095377686,0.28477858,702.3,701.01,0.28530263]
[1735095385292,1.06681874,703.0,701.01,0.28530263]
[1735095385492,0.28450311,702.98,701.01,0.28530263]
[1735095385693,0.2619362,702.97,701.01,0.28530263]
[1735095386697,1.06681874,702.96,701.01,0.28530263]
[1735095387194,0.26193101,702.95,701.01,0.28530263]
[1735095387896,0.26193101,702.94,701.01,0.28530263]
[1735095388095,0.26193101,702.93,701.01,0.28530263]
[1735095388294,0.26193101,702.92,701.01,0.28530263]
[1735095388494,0.54646245,702.91,701.01,0.28530263]
[1735095388693,0.26193101,702.9,701.01,0.28530263]
[1735095389296,0.28453954,702.89,701.01,0.28530263]
[1735095389492,0.26193101,702.88,701.01,0.28530263]
[1735095389894,0.26188678,702.87,701.01,0.28530263]
[1735095390094,0.26188678,702.86,701.01,0.28530263]
[1735095390301,0.26188678,702.85,701.01,0.28530263]
[1735095390500,0.26188678,702.84,701.01,0.28530263]
[1735095390798,0.28453954,702.89,701.01,0.28530263]
[1735095391798,1.06681874,703.27,701.01,0.28530263]
[1735095392006,0.26165175,703.26,701.01,0.28530263]
[1735095392205,1.06681874,703.27,701.01,0.28530263]
[1735095392504,1.06681874,704.07,701.01,0.28530263]
[1735095392701,0.28410301,703.97,701.01,0.28530263]
[1735095392902,0.26163145,703.96,701.01,0.28530263]
[1735095393096,0.28411512,703.94,701.01,0.28530263]
[1735095393305,0.26163145,703.93,701.01,0.28530263]
[1735095393505,0.28412723,703.91,701.13,1.05784527]
[1735095393700,0.26163145,703.9,701.26,0.28520092]
[1735095393904,0.26163145,703.89,701.26,0.28520092]
[1735095394204,0.54577079,703.88,701.26,0.28520092]
[1735095394400,0.26163145,703.87,701.26,0.28520092]
[1735095394600,0.54577886,703.86,701.26,0.28520092]
[1735095394799,0.28415548,703.84,701.26,0.28520092]
[1735095395001,0.26163145,703.83,701.26,0.28520092]
[1735095395404,0.26165764,703.82,701.26,0.28520092]
[1735095395603,0.28417163,703.8,701.26,0.28520092]
[1735095395806,0.26165764,703.79,701.26,0.28520092]
[1735095396006,0.28418375,703.77,701.26,0.28520092]
[1735095396307,0.26166078,703.76,701.26,0.28520092]
[1735095396507,0.28419586,703.74,701.26,0.28520092]
[1735095396709,0.26166078,703.73,701.26,0.28520092]
[1735095396905,0.28420798,703.71,701.26,0.28520092]
[1735095397102,0.26166078,703.7,701.26,0.28520092]
[1735095397403,0.2842201,703.68,701.26,0.28520092]
[1735095397605,0.26166078,703.67,701.26,0.28520092]
[1735095397908,0.28423221,703.65,701.26,0.28520092]
[1735095398108,0.26166078,703.64,701.26,0.28520092]
[1735095398305,0.28424433,703.62,701.26,0.28520092]
[1735095398508,0.26165616,703.61,701.26,0.28520092]
[1735095398709,0.28425241,703.6,701.26,0.28520092]
[1735095400309,0.26158331,703.59,701.26,0.28520092]
[1735095401208,0.26158679,703.58,701.26,0.28520092]
[1735095401510,0.26158679,703.57,701.26,0.28520092]
[1735095401703,0.26158679,703.56,701.26,0.28520092]
[1735095401904,0.26158679,703.55,701.26,0.28520092]
[1735095402207,0.26158679,703.54,701.26,0.28520092]
[1735095402408,0.26158679,703.53,701.26,0.28520092]
[1735095402607,0.26158679,703.52,701.26,0.28520092]
[1735095402805,0.26158679,703.51,701.26,0.28520092]
[1735095403111,0.26158679,703.5,701.26,0.28520092]
[1735095403407,0.26158679,703.49,701.26,0.28520092]
[1735095403608,0.26158679,703.48,701.26,0.28520092]
[1735095403804,0.26158679,703.59,701.26,0.28520092]
[1735095404008,0.26158679,703.58,701.26,0.28520092]
[1735095404209,0.26158679,703.57,701.26,0.28520092]
[1735095404409,0.26158679,703.56,701.26,0.28520092]
[1735095404604,0.28425241,703.6,701.26,0.28520092]
[1735095404810,0.2616041,703.59,701.26,0.28520092]
[1735095405906,0.28425241,703.6,701.26,0.28520092]
[1735095408413,0.26154239,703.59,701.26,0.28520092]
[1735095409214,0.26154239,703.58,701.26,0.28520092]
[1735095409414,0.26153988,703.57,701.26,0.28520092]
[1735095409610,0.26153988,703.56,701.26,0.28520092]
[1735095409814,0.26153988,703.55,701.26,0.28520092]
[1735095410113,0.26153988,703.54,701.26,0.28520092]
[1735095410315,0.26153988,703.53,701.26,0.28520092]
[1735095410508,0.26153988,703.52,701.26,0.28520092]
[1735095410712,0.28425241,703.6,701.26,0.28520092]
[1735095410713,0.26153988,703.51,701.26,0.28520092]
[1735095410908,0.26153988,703.5,701.26,0.28520092]
[1735095411112,0.26153988,703.49,701.26,0.28520092]
[1735095411309,0.26153988,703.48,701.26,0.28520092]
[1735095411509,0.26153988,703.47,701.26,0.28520092]
[1735095411713,0.26153988,703.46,701.26,0.28520092]
[1735095411914,0.26153988,703.45,701.26,0.28520092]
[1735095412110,0.26153988,703.44,701.26,0.28520092]
[1735095412410,0.26156864,703.43,701.26,0.28520092]
[1735095412618,0.28425241,703.6,701.26,0.28520092]
[1735095412619,0.26156864,703.42,701.26,0.28520092]
[1735095412815,0.26156864,703.41,701.26,0.28520092]
[1735095413013,0.26157746,703.4,701.26,0.28520092]
[1735095413218,0.26157746,703.39,701.26,0.28520092]
[1735095413418,0.26157746,703.38,701.26,0.28520092]
[1735095413620,0.26157746,703.37,701.26,0.28520092]
[1735095413921,0.26157746,703.36,701.26,0.28520092]
[1735095414122,0.26157746,703.35,701.26,0.28520092]
[1735095414317,0.26157746,703.34,701.26,0.28520092]
[1735095414521,0.26157746,703.33,701.26,0.28520092]
[1735095414718,0.26157746,703.32,701.26,0.28520092]
[1735095414922,0.28425241,703.6,701.26,0.28520092]
[1735095415124,0.26158729,703.59,701.26,0.28520092]
[1735095416022,0.26158729,703.58,701.26,0.28520092]
[1735095416223,0.26158729,703.57,701.26,0.28520092]
[1735095416423,0.26158729,703.56,701.26,0.28520092]